fUSD/lending_fUSD_20260321
["ID","MTS","AMOUNT","RATE_DAILY","PERIOD"]
[408692264,1774129831669,-224.03,0.00013239,2]
[408692265,1774129831679,-601.63581945,0.00013446,2]
[408692266,1774129831690,-500.0,0.00013598,2]
[408692267,1774129831699,-150.0,0.0001365,2]
[408692268,1774129831709,-166.66,0.00013651,2]
[408692270,1774129831718,-9999.99,0.00013651,2]
[408692272,1774129831728,-8494.37,0.00013651,2]
[408692274,1774129831737,-381.44,0.00013699,2]
[408692276,1774129831747,-271.81586997,0.000137,2]
[408692278,1774129831757,-267.5905417,0.000137,2]
[408692280,1774129831766,-30000.03,0.00013754,2]
[408692282,1774129831775,-601.63581945,0.00013754,2]
[408692284,1774129831785,-159.43661877,0.00013773,2]
[408692286,1774129831798,-401.13498562,0.00013773,2]
[408692288,1774129831808,-1000.0,0.000138,5]
[408692289,1774129831817,-200.0,0.00013847,2]
[408692290,1774129831827,-173.42751099,0.00013847,2]
[408692291,1774129831837,-1010.99885533,0.00013854,2]
[408692292,1774129831846,-2788.453,0.00013854,2]
[408692293,1774129831856,-153.337,0.00013854,2]
[408692294,1774129832057,-23215.14347675,0.00013855,2]
[408692295,1774129832072,-665.72995843,0.00013855,2]
[408692297,1774129837587,-214671.9822995,0.00013855,2]
[408692298,1774129837647,-863.73012948,0.00013855,2]
[408692299,1774129837658,-1039.42064932,0.00013855,2]
[408692300,1774129837816,-2141.56942181,0.00013855,2]
[408692317,1774129839957,-474.43830873,0.00013873,2]
[408692318,1774129839967,-500.0,0.00013873,2]
[408692319,1774129839976,-500.0,0.00013873,2]
[408692320,1774129839985,-500.0,0.00013873,2]
[408692321,1774129839994,-500.0,0.00013873,2]
[408692322,1774129840004,-213.1479931,0.00013873,2]
[408692323,1774129840178,-286.8520069,0.00013873,2]
[408692324,1774129840187,-274.34,0.000139,2]
[408692325,1774129840196,-1184.65,0.000139,2]
[408692326,1774129840206,-783.46321564,0.000139,2]
[408692327,1774129840217,-338.06678436,0.000139,2]
[408692328,1774129840226,-792.17,0.000139,2]
[408692329,1774129840236,-995.29157668,0.000139,5]
[408692331,1774129840247,-831.00500063,0.000139,5]
[408692339,1774129842639,-273.70342269,0.000139,5]
[408692340,1774129842649,-166.66,0.00013938,2]
[408692341,1774129842658,-131.57913965,0.00013972,2]
[408692342,1774129842810,-381.42086035,0.00013972,2]
[408692343,1774129842820,-507.0,0.00014,2]
[408692344,1774129842830,-401.13498562,0.00014077,2]
[408692345,1774129842840,-159.43661873,0.00014128,2]
[408692346,1774129842850,-166.66,0.00014226,2]
[408692347,1774129842860,-250.0,0.00014235,2]
[408692348,1774129842873,-300.0,0.00014235,2]
[408692349,1774129842883,-97.98832204,0.00014235,2]
[408692370,1774130154480,2515.81032644,0.00012935,2]
[408692371,1774130188562,200.0,0.00012779,2]
[408692372,1774130464107,1979.55,0.00012672,2]
[408692374,1774130813763,4738.20967356,0.000126,2]
[408692375,1774130813784,4446.80032644,0.000126,2]
[408692376,1774130847128,-1200.0,0.00013009,2]
[408692377,1774130847150,-150.0,0.00013009,2]
[408692378,1774130847172,-300.0,0.00013009,2]
[408692379,1774130847193,-300.0,0.00013009,2]
[408692380,1774130847214,-250.0,0.00013009,2]
[408692381,1774130847235,-3130.3348715,0.00013009,2]
[408692382,1774130847255,-289.26112593,0.0001301,2]
[408692383,1774130847281,-257.0,0.0001301,2]
[408692384,1774130847301,-150.0,0.0001301,2]
[408692385,1774130847320,-500.0,0.0001301,2]
[408692386,1774130847342,-500.0,0.0001301,2]
[408692387,1774130847365,-500.0,0.0001301,2]
[408692388,1774130847386,-500.0,0.0001301,2]
[408692389,1774130847407,-500.0,0.0001301,2]
[408692390,1774130847427,-500.0,0.0001301,2]
[408692391,1774130847451,-500.0,0.0001301,2]
[408692392,1774130847472,-500.0,0.0001301,2]
[408692393,1774130847494,-213.60668859,0.0001301,2]
[408692394,1774130847515,-1852.42,0.00013112,2]
[408692395,1774130847535,-172.1892,0.00013138,2]
[408692396,1774130847554,-223.37,0.00013389,3]
[408692397,1774130847574,-1001.50433704,0.00013423,2]
[408692398,1774130847594,-1000.0,0.00013423,2]
[408692399,1774130847613,-8180.62652835,0.00013424,2]
[408692400,1774130850802,208.25,0.00012727,2]
[408692401,1774130896736,150.0,0.00012695,2]
[408692412,1774131031769,-300.0,0.00013323,2]
[408692413,1774131031787,-1200.0,0.00013323,2]
[408692414,1774131031796,-259.0,0.00013323,2]
[408692415,1774131031805,-98515.7005,0.00013324,2]
[408692416,1774131031818,-211981.8196,0.00013324,2]
[408692417,1774131031828,-22472.33124536,0.00013351,2]
[408692418,1774131031837,-150.0,0.00013423,2]
[408692419,1774131031847,-300.0,0.00013423,2]
[408692420,1774131031856,-1000.0,0.00013423,2]
[408692421,1774131031865,-5000.0,0.00013424,2]
[408692422,1774131031875,-1819.36347165,0.00013424,2]
[408692423,1774131031884,-9999.99,0.00013424,2]
[408692424,1774131031893,-9999.99,0.00013424,2]
[408692426,1774131031902,-57559.52,0.00013424,2]
[408692427,1774131031911,-299.99,0.00013424,2]
[408692428,1774131031920,-19999.99,0.00013424,2]
[408692429,1774131031929,-150.99,0.00013424,2]
[408692430,1774131031938,-3240.0,0.00013425,2]
[408692431,1774131031947,-306.09797867,0.00013436,2]
[408692432,1774131031956,-556.53673858,0.00013436,2]
[408692433,1774131031965,-372.5830521,0.00013436,2]
[408692434,1774131031973,-799.36239722,0.00013436,2]
[408692435,1774131031982,-823.07589343,0.00013436,2]
[408692436,1774131031991,-268.18918941,0.00013436,2]
[408692437,1774131032000,-210.66708887,0.00013436,2]
[408692438,1774131032010,-1000.0,0.0001345,2]
[408692439,1774131032022,-6665.30790525,0.00013451,2]
[408692440,1774131032031,-25605.0953499,0.00013471,2]
[408692441,1774131032040,-165.25954363,0.00013473,2]
[408692442,1774131032048,-3236.98744912,0.00013473,2]
[408692443,1774131032057,-2685.038959,0.00013473,2]
[408692444,1774131032066,-179.228377,0.00013541,2]
[408692445,1774131032075,-500.0,0.00013543,2]
[408692446,1774131032084,-500.0,0.00013543,2]
[408692447,1774131032093,-500.0,0.00013543,2]
[408692448,1774131032103,-500.0,0.00013543,2]
[408692449,1774131032112,-500.0,0.00013543,2]
[408692450,1774131032121,-500.0,0.00013543,2]
[408692451,1774131032130,-500.0,0.00013543,2]
[408692452,1774131032138,-500.0,0.00013543,2]
[408692453,1774131032147,-169.23859107,0.00013543,2]
[408692454,1774131032156,-151.0,0.00013543,2]
[408692455,1774131032165,-151.0,0.00013543,2]
[408692456,1774131032175,-151.0,0.00013543,2]
[408692457,1774131032184,-151.0,0.00013543,2]
[408692458,1774131032194,-151.0,0.00013543,2]
[408692459,1774131032203,-151.0,0.00013543,2]
[408692460,1774131032214,-151.0,0.00013543,2]
[408692461,1774131032224,-151.0,0.00013543,2]
[408692462,1774131032234,-151.0,0.00013543,2]
[408692463,1774131032243,-200.0,0.00013543,2]
[408692464,1774131032252,-151.0,0.00013548,2]
[408692465,1774131032262,-500.0,0.0001355,2]
[408692466,1774131032271,-577.41967509,0.0001355,2]
[408692467,1774131032281,-577.41967509,0.0001355,2]
[408692468,1774131032290,-577.41967509,0.0001355,2]
[408692469,1774131032300,-577.41967509,0.0001355,2]
[408692470,1774131032313,-577.41967509,0.0001355,2]
[408692471,1774131032323,-577.41967509,0.0001355,2]
[408692472,1774131032332,-577.41967509,0.0001355,2]
[408692473,1774131032341,-577.41967509,0.0001355,2]
[408692474,1774131032352,-577.41967509,0.0001355,2]
[408692475,1774131032361,-577.41967509,0.0001355,2]
[408692476,1774131032370,-577.41967509,0.0001355,2]
[408692477,1774131032380,-577.41967509,0.0001355,2]
[408692478,1774131032390,-577.41967509,0.0001355,2]
[408692479,1774131032400,-577.41967509,0.0001355,2]
[408692480,1774131032409,-577.41967509,0.0001355,2]
[408692481,1774131032418,-577.41967509,0.0001355,2]
[408692482,1774131032428,-577.41967509,0.0001355,2]
[408692483,1774131032437,-577.41967509,0.0001355,2]
[408692484,1774131032446,-577.41967509,0.0001355,2]
[408692485,1774131032455,-577.41967509,0.0001355,2]
[408692486,1774131032465,-577.41967509,0.0001355,2]
[408692487,1774131032475,-577.41967509,0.0001355,2]
[408692488,1774131032484,-577.41967509,0.0001355,2]
[408692489,1774131032494,-577.41967509,0.0001355,2]
[408692490,1774131032503,-577.41967509,0.0001355,2]
[408692491,1774131032513,-577.41967509,0.0001355,2]
[408692492,1774131032523,-577.41967509,0.0001355,2]
[408692493,1774131032533,-577.41967509,0.0001355,2]
[408692494,1774131032542,-577.41967509,0.0001355,2]
[408692495,1774131032551,-577.41967509,0.0001355,2]
[408692496,1774131032561,-577.41967509,0.0001355,2]
[408692497,1774131032570,-577.41967509,0.0001355,2]
[408692498,1774131032580,-577.41967509,0.0001355,2]
[408692499,1774131032590,-577.41967509,0.0001355,2]
[408692500,1774131032600,-577.41967509,0.0001355,2]
[408692501,1774131032619,-577.41967509,0.0001355,2]
[408692502,1774131032630,-577.41967509,0.0001355,2]
[408692503,1774131032640,-577.41967509,0.0001355,2]
[408692504,1774131032650,-577.41967509,0.0001355,2]
[408692505,1774131032660,-577.41967509,0.0001355,2]
[408692506,1774131032670,-577.41967509,0.0001355,2]
[408692507,1774131032680,-577.41967509,0.0001355,2]
[408692508,1774131032690,-577.41967509,0.0001355,2]
[408692509,1774131032700,-577.41967509,0.0001355,2]
[408692510,1774131032710,-577.41967509,0.0001355,2]
[408692511,1774131032719,-577.41967509,0.0001355,2]
[408692512,1774131032730,-577.41967509,0.0001355,2]
[408692513,1774131032739,-577.41967509,0.0001355,2]
[408692514,1774131032749,-577.41967509,0.0001355,2]
[408692515,1774131032759,-312.55550494,0.0001355,2]
[408692516,1774131032769,-575.85908136,0.0001355,2]
[408692517,1774131032779,-575.85908136,0.0001355,2]
[408692518,1774131032789,-575.85908136,0.0001355,2]
[408692519,1774131032799,-575.85908136,0.0001355,2]
[408692520,1774131032810,-575.85908136,0.0001355,2]
[408692521,1774131032821,-575.85908136,0.0001355,2]
[408692522,1774131032831,-575.85908136,0.0001355,2]
[408692523,1774131032841,-575.85908136,0.0001355,2]
[408692524,1774131032853,-575.85908136,0.0001355,2]
[408692525,1774131032865,-575.85908136,0.0001355,2]
[408692526,1774131032875,-575.85908136,0.0001355,2]
[408692527,1774131032884,-575.85908136,0.0001355,2]
[408692528,1774131032894,-575.85908136,0.0001355,2]
[408692529,1774131032904,-575.85908136,0.0001355,2]
[408692530,1774131032914,-575.85908136,0.0001355,2]
[408692531,1774131032925,-575.85908136,0.0001355,2]
[408692532,1774131032935,-575.85908136,0.0001355,2]
[408692533,1774131032945,-575.85908136,0.0001355,2]
[408692534,1774131032955,-575.85908136,0.0001355,2]
[408692535,1774131032965,-575.85908136,0.0001355,2]
[408692536,1774131032976,-575.85908136,0.0001355,2]
[408692537,1774131032985,-575.85908136,0.0001355,2]
[408692538,1774131032998,-575.85908136,0.0001355,2]
[408692539,1774131033008,-575.85908136,0.0001355,2]
[408692540,1774131033018,-575.85908136,0.0001355,2]
[408692541,1774131033028,-575.85908136,0.0001355,2]
[408692542,1774131033038,-575.85908136,0.0001355,2]
[408692543,1774131033048,-575.85908136,0.0001355,2]
[408692544,1774131033058,-500.0,0.0001355,2]
[408692545,1774131033067,-575.85908136,0.0001355,2]
[408692546,1774131033076,-153.36555988,0.0001355,2]
[408692547,1774131033086,-500.0,0.0001355,2]
[408692548,1774131033095,-575.85908136,0.0001355,2]
[408692549,1774131033106,-575.85908138,0.0001355,2]
[408692550,1774131033115,-575.85908138,0.0001355,2]
[408692551,1774131033126,-575.85908138,0.0001355,2]
[408692552,1774131033135,-575.85908138,0.0001355,2]
[408692553,1774131033145,-575.85908138,0.0001355,2]
[408692554,1774131033154,-575.85908138,0.0001355,2]
[408692555,1774131033164,-575.85908138,0.0001355,2]
[408692556,1774131033174,-2966.996,0.0001355,2]
[408692557,1774131033183,-161.731,0.0001355,2]
[408692558,1774131033193,-5171.11774103,0.00013551,2]
[408692559,1774131033208,-1085.39999998,0.00013551,2]
[408692560,1774131033220,-40461.92656146,0.00013551,2]
[408692561,1774131033235,-6265.40487798,0.00013551,2]
[408692566,1774131037801,-1078023.87301955,0.00013551,2]
[408692567,1774131037811,-378.53301702,0.00013573,2]
[408692568,1774131037821,-500.0,0.00013573,2]
[408692569,1774131037831,-500.0,0.00013573,2]
[408692570,1774131037842,-500.0,0.00013573,2]
[408692571,1774131037852,-500.0,0.00013573,2]
[408692572,1774131037862,-900.0,0.000136,4]
[408692573,1774131037872,-22472.33124532,0.00013634,2]
[408692574,1774131037882,-311.4,0.00013686,2]
[408692575,1774131037892,-246.0894193,0.00013698,2]
[408692576,1774131037902,-500.0,0.00013698,2]
[408692577,1774131037911,-338.47316987,0.00013698,2]
[408692578,1774131037922,-176.25227146,0.00013699,2]
[408692579,1774131037931,-274.34,0.000137,2]
[408692580,1774131037942,-1375.21,0.000137,2]
[408692581,1774131037951,-1181.93,0.000137,2]
[408692582,1774131037961,-1900.0,0.000137,5]
[408692583,1774131037971,-393.0,0.00013734,2]
[408692584,1774131037981,-2100.15432019,0.00013734,2]
[408692585,1774131037990,-2685.03895892,0.00013743,2]
[408692586,1774131038000,-500.84837608,0.00013773,2]
[408692587,1774131038009,-500.0,0.00013773,2]
[408692588,1774131038019,-189.60380619,0.00013773,2]
[408692589,1774131038029,-658.93695718,0.00013773,2]
[408692591,1774131038039,-2900.0,0.000138,5]
[408692592,1774131038048,-3236.98744912,0.0001382,2]
[408692594,1774131038057,-500.0,0.00013824,2]
[408692596,1774131038066,-155.0,0.00013833,2]
[408692598,1774131038075,-88446.1071635,0.00013834,2]
[408692600,1774131038084,-8024.9063038,0.00013834,2]
[408692602,1774131038093,-361374.1547016,0.00013834,2]
[408692604,1774131038103,-76815.2860498,0.00013834,2]
[408692606,1774131038111,-151.0,0.00013834,2]
[408692609,1774131038121,-161.97013,0.00013834,2]
[408692611,1774131038131,-151.0,0.00013834,2]
[408692613,1774131038140,-151.0,0.00013834,2]
[408692615,1774131038149,-151.0,0.00013834,2]
[408692617,1774131038158,-151.0,0.00013834,2]
[408692619,1774131038168,-151.0,0.00013834,2]
[408692621,1774131038178,-151.0,0.00013834,2]
[408692623,1774131038187,-1027.012296,0.00013834,2]
[408692625,1774131038196,-1027.012296,0.00013834,2]
[408692627,1774131038206,-1027.012296,0.00013834,2]
[408692629,1774131038215,-1027.012296,0.00013834,2]
[408692631,1774131038224,-151.0,0.00013834,2]
[408692633,1774131038234,-157.949889,0.00013834,2]
[408692635,1774131038243,-151.0,0.00013834,2]
[408692637,1774131038251,-157.949889,0.00013834,2]
[408692638,1774131038261,-151.0,0.00013834,2]
[408692639,1774131038271,-157.949889,0.00013834,2]
[408692640,1774131038280,-157.949889,0.00013834,2]
[408692641,1774131038290,-654.905291,0.00013834,2]
[408692642,1774131038299,-151.0,0.00013834,2]
[408692643,1774131038312,-654.905291,0.00013834,2]
[408692644,1774131038321,-654.905291,0.00013834,2]
[408692645,1774131038331,-654.905291,0.00013834,2]
[408692646,1774131038340,-197.873476,0.00013834,2]
[408692647,1774131038351,-197.873476,0.00013834,2]
[408692648,1774131038360,-197.873476,0.00013834,2]
[408692649,1774131038370,-197.873476,0.00013834,2]
[408692650,1774131038380,-469.194984,0.00013834,2]
[408692651,1774131038390,-2106.797323,0.00013834,2]
[408692652,1774131038399,-469.194984,0.00013834,2]
[408692653,1774131038408,-2106.797323,0.00013834,2]
[408692654,1774131038418,-469.194984,0.00013834,2]
[408692655,1774131038428,-2106.797323,0.00013834,2]
[408692656,1774131038437,-469.194984,0.00013834,2]
[408692657,1774131038446,-2106.797323,0.00013834,2]
[408692658,1774131038456,-151.0,0.00013834,2]
[408692659,1774131038465,-500.0,0.00013873,2]
[408692660,1774131038475,-500.0,0.00013873,2]
[408692661,1774131038484,-500.0,0.00013873,2]
[408692662,1774131038494,-500.0,0.00013873,2]
[408692663,1774131038503,-500.0,0.00013873,2]
[408692664,1774131038512,-500.0,0.00013873,2]
[408692665,1774131038524,-500.0,0.00013873,2]
[408692666,1774131038533,-500.0,0.00013873,2]
[408692667,1774131038542,-500.0,0.00013873,2]
[408692668,1774131038551,-500.0,0.00013873,2]
[408692669,1774131038560,-500.0,0.00013873,2]
[408692670,1774131038569,-500.0,0.00013873,2]
[408692671,1774131038578,-500.0,0.00013873,2]
[408692672,1774131038587,-500.0,0.00013873,2]
[408692673,1774131038596,-500.0,0.00013873,2]
[408692674,1774131038606,-500.0,0.00013873,2]
[408692675,1774131038615,-500.0,0.00013873,2]
[408692676,1774131038624,-500.0,0.00013873,2]
[408692677,1774131038633,-500.0,0.00013873,2]
[408692678,1774131038643,-500.0,0.00013873,2]
[408692679,1774131038652,-500.0,0.00013873,2]
[408692680,1774131038661,-500.0,0.00013873,2]
[408692681,1774131038671,-500.0,0.00013873,2]
[408692682,1774131038680,-500.0,0.00013873,2]
[408692683,1774131038689,-500.0,0.00013873,2]
[408692684,1774131038699,-500.0,0.00013873,2]
[408692685,1774131038709,-501.28770509,0.00013873,2]
[408692686,1774131038718,-500.0,0.00013873,2]
[408692687,1774131038728,-500.0,0.00013873,2]
[408692688,1774131038737,-500.0,0.00013873,2]
[408692689,1774131038747,-500.0,0.00013873,2]
[408692690,1774131038756,-500.0,0.00013873,2]
[408692691,1774131038766,-500.0,0.00013873,2]
[408692692,1774131038775,-500.0,0.00013873,2]
[408692693,1774131038784,-500.0,0.00013873,2]
[408692694,1774131038793,-500.0,0.00013873,2]
[408692695,1774131038803,-389.88183382,0.00013873,2]
[408692696,1774131038812,-165.25954363,0.00013878,2]
[408692697,1774131038821,-172.757338,0.00013879,2]
[408692698,1774131038831,-790.66,0.000139,2]
[408692699,1774131038840,-516.09,0.000139,2]
[408692700,1774131038849,-3800.0,0.000139,5]
[408692701,1774131038858,-250.0,0.00013911,2]
[408692702,1774131038868,-22472.33124532,0.00013917,2]
[408692703,1774131038878,-215.0,0.00013945,2]
[408692704,1774131038887,-506.0,0.00014,2]
[408692705,1774131038897,-2685.03895892,0.00014012,2]
[408692706,1774131038907,-185.67890709,0.00014021,2]
[408692707,1774131038916,-500.0,0.00014027,2]
[408692708,1774131038926,-200.0,0.00014091,2]
[408692709,1774131038935,-152.96986947,0.00014098,2]
[408692710,1774131038944,-22573.70029477,0.000141,2]
[408692711,1774131038954,-25547.70144303,0.000141,2]
[408692712,1774131038963,-1002.62691089,0.00014121,2]
[408692713,1774131038972,-1000.0,0.00014121,2]
[408692714,1774131038981,-367.89307626,0.00014121,2]
[408692715,1774131038991,-3236.98744912,0.00014166,2]
[408692716,1774131039000,-257.46,0.00014183,2]
[408692717,1774131039009,-22472.33124532,0.00014201,2]
[408692718,1774131039018,-151.0,0.00014235,2]
[408692719,1774131039028,-200.0,0.00014235,2]
[408692720,1774131039037,-1521.0,0.00014235,2]
[408692721,1774131039046,-151.0,0.00014235,2]
[408692722,1774131039055,-1521.0,0.00014235,2]
[408692723,1774131039243,-151.0,0.00014235,2]
[408692724,1774131039254,-1521.0,0.00014235,2]
[408692725,1774131039264,-151.0,0.00014235,2]
[408692726,1774131039274,-226.48719453,0.00014235,2]
[408692727,1774131039284,-160.0,0.00014235,2]
[408692728,1774131039294,-151.0,0.00014235,2]
[408692729,1774131039303,-1521.0,0.00014235,2]
[408692730,1774131039316,-160.0,0.00014235,2]
[408692731,1774131039326,-1521.0,0.00014235,2]
[408692732,1774131039336,-151.0,0.00014235,2]
[408692733,1774131039345,-160.0,0.00014235,2]
[408692734,1774131039355,-1521.0,0.00014235,2]
[408692735,1774131039365,-151.0,0.00014235,2]
[408692736,1774131039374,-160.0,0.00014235,2]
[408692737,1774131039383,-159.9858372,0.00014235,2]
[408692738,1774131039393,-161.42353155,0.00014235,2]
[408692739,1774131039403,-153.0,0.00014235,2]
[408692740,1774131039412,-153.0,0.00014235,2]
[408692741,1774131039421,-500.0,0.00014235,2]
[408692742,1774131039430,-200.0,0.00014235,2]
[408692743,1774131039440,-151.0,0.00014235,2]
[408692744,1774131039449,-151.0,0.00014235,2]
[408692745,1774131039459,-165.25954363,0.00014282,2]
[408692746,1774131039468,-2685.03895892,0.00014282,2]
[408692747,1774131039478,-9570.73,0.00014283,2]
[408692748,1774131039487,-5000.0,0.0001431,2]
[408692749,1774131039496,-2505.55166651,0.0001431,2]
[408692750,1774131039506,-5000.0,0.0001431,2]
[408692751,1774131039515,-250.0,0.0001431,2]
[408692752,1774131039523,-248.62001241,0.00014321,2]
[408692753,1774131039537,-347.94216551,0.00014321,2]
[408692754,1774131039552,-403.43782208,0.00014321,2]
[408692755,1774131039561,-96.56217792,0.00014376,2]
[408692756,1774131039585,-1442.88782208,0.00014376,2]
[408692757,1774131039594,-200.0,0.00014377,2]
[408692758,1774131039604,-1275.67217792,0.00014379,2]
[408692759,1774131039615,-7302.44670853,0.00014379,2]
[408692760,1774131039624,-1000.0,0.00014421,2]
[408692761,1774131039634,-1000.0,0.00014421,2]
[408692762,1774131039643,-1000.0,0.00014421,2]
[408692763,1774131039652,-1000.0,0.00014421,2]
[408692764,1774131039661,-1000.0,0.00014421,2]
[408692765,1774131039670,-1000.0,0.00014421,2]
[408692766,1774131039679,-1000.0,0.00014421,2]
[408692767,1774131039689,-1000.0,0.00014421,2]
[408692768,1774131039698,-1000.0,0.00014421,2]
[408692769,1774131039708,-1000.0,0.00014421,2]
[408692770,1774131039717,-1000.0,0.00014421,2]
[408692771,1774131039726,-414.97243229,0.00014421,2]
[408692772,1774131039735,-1000.0,0.00014421,2]
[408692773,1774131039745,-1000.0,0.00014421,2]
[408692774,1774131039755,-1000.0,0.00014421,2]
[408692775,1774131039764,-1000.0,0.00014421,2]
[408692776,1774131039773,-1000.0,0.00014421,2]
[408692777,1774131039783,-629.2854378,0.00014421,2]
[408692778,1774131039792,-1000.0,0.00014421,2]
[408692779,1774131039802,-1000.0,0.00014421,2]
[408692780,1774131039811,-1000.0,0.00014421,2]
[408692781,1774131039820,-1000.0,0.00014421,2]
[408692782,1774131039830,-1000.0,0.00014421,2]
[408692783,1774131039839,-1000.0,0.00014421,2]
[408692785,1774131039849,-1000.0,0.00014421,2]
[408692786,1774131039858,-301.7381184,0.00014421,2]
[408692787,1774131039868,-1000.0,0.00014421,2]
[408692788,1774131039877,-1000.0,0.00014421,2]
[408692789,1774131039886,-1000.0,0.00014421,2]
[408692790,1774131039895,-1000.0,0.00014421,2]
[408692791,1774131039905,-1000.0,0.00014421,2]
[408692792,1774131039915,-1000.0,0.00014421,2]
[408692793,1774131039924,-673.4,0.00014442,2]
[408692794,1774131039933,-2686.08,0.00014458,2]
[408692795,1774131039943,-22472.33124532,0.00014484,2]
[408692796,1774131039952,-2693.58,0.00014493,2]
[408692797,1774131039962,-166.21278402,0.000145,2]
[408692798,1774131039971,-166.66,0.00014513,2]
[408692799,1774131039980,-3236.98744912,0.00014513,2]
[408692800,1774131039990,-200.0,0.00014521,2]
[408692801,1774131039999,-255.0,0.00014537,2]
[408692802,1774131040009,-2685.03895892,0.00014552,2]
[408692803,1774131040018,-814.72,0.000146,2]
[408692804,1774131040028,-420.0,0.00014606,2]
[408692805,1774131040038,-1568.0,0.00014625,2]
[408692806,1774131040047,-200.0,0.00014639,2]
[408692807,1774131040056,-1680.0,0.00014655,2]
[408692808,1774131040065,-193.0,0.00014655,2]
[408692809,1774131040075,-5000.0,0.00014655,2]
[408692810,1774131040084,-195.0,0.00014655,2]
[408692811,1774131040094,-195.0,0.00014655,2]
[408692812,1774131040103,-199.9604653,0.00014655,2]
[408692813,1774131040113,-250.0,0.00014655,2]
[408692814,1774131040122,-200.0,0.00014666,2]
[408692815,1774131040132,-1000.0,0.00014668,2]
[408692816,1774131040141,-200.03581,0.00014669,7]
[408692817,1774131040151,-212.845139,0.00014669,7]
[408692818,1774131040160,-160.0,0.00014669,7]
[408692819,1774131040170,-408.829522,0.00014669,7]
[408692820,1774131040179,-192.774302,0.00014669,7]
[408692821,1774131040189,-165.25954363,0.00014687,2]
[408692822,1774131040198,-175.995567,0.00014712,7]
[408692823,1774131040207,-160.0,0.00014712,7]
[408692824,1774131040217,-234.0,0.00014714,2]
[408692825,1774131040226,-1568.0,0.0001472,2]
[408692826,1774131040236,-2415.0,0.0001472,2]
[408692827,1774131040245,-1568.0,0.0001472,2]
[408692828,1774131040255,-600.0,0.00014765,2]
[408692829,1774131040265,-600.0,0.00014765,2]
[408692830,1774131040274,-600.0,0.00014765,2]
[408692831,1774131040284,-5000.0,0.00014765,2]
[408692832,1774131040293,-195.0,0.00014765,2]
[408692833,1774131040302,-250.0,0.00014765,2]
[408692834,1774131040314,-22472.33124532,0.00014767,2]
[408692835,1774131040323,-10000.0,0.00014781,2]
[408692836,1774131040333,-160.0,0.00014789,7]
[408692837,1774131040342,-160.0,0.00014789,7]
[408692838,1774131040353,-1874.0,0.00014791,5]
[408692839,1774131040362,-166.66,0.000148,2]
[408692840,1774131040371,-200.0,0.00014813,2]
[408692841,1774131040380,-2100.15432017,0.00014817,2]
[408692842,1774131040391,-2685.03895892,0.00014821,2]
[408692843,1774131040400,-658.93695718,0.00014837,2]
[408692844,1774131040409,-3236.98744912,0.0001486,2]
[408692846,1774131040419,-220.67690452,0.00014868,2]
[408692847,1774131040428,-198.456473,0.00014878,7]
[408692848,1774131040437,-399.895375,0.00014878,7]
[408692849,1774131040446,-160.0,0.00014895,7]
[408692850,1774131040455,-443.2,0.00014944,2]
[408692851,1774131040465,-2403.0,0.00014945,2]
[408692852,1774131040475,-185.67890707,0.00014961,2]
[408692853,1774131040484,-1500.0,0.00014968,2]
[408692854,1774131040493,-1500.0,0.00014968,2]
[408692855,1774131040503,-506.1213296,0.00014968,2]
[408692856,1774131040512,-1504.53470373,0.00014968,2]
[408692857,1774131040521,-1500.0,0.00014968,2]
[408692858,1774131040531,-1500.0,0.00014968,2]
[408692859,1774131040541,-233.18347913,0.00014968,2]
[408692860,1774131040551,-547.2319377,0.00014968,2]